bitfinex/quotes_ETHUSD_20250422
["timestamp","ask_amount","ask_price","bid_price","bid_amount"]
[1745287601660,12.57599863,1590.4,1590.2,0.7811853]
[1745287602168,6.28797042,1590.4,1590.3,0.7811853]
[1745287602460,7.96553338,1590.4,1590.3,0.7811853]
[1745287602822,7.96553338,1590.4,1590.3,0.19650893]
[1745287603220,6.28844598,1590.3,1590.1,9.54696552]
[1745287603447,6.28844598,1590.3,1590.2,0.19635365]
[1745287603860,6.28844598,1590.3,1590.2,0.77885344]
[1745287604055,6.287911,1590.4,1590.2,0.77885344]
[1745287604431,6.28775935,1590.4,1590.2,0.77885344]
[1745287604758,6.28775935,1590.4,1590.3,0.19635365]
[1745287604917,6.28752645,1590.5,1590.3,0.19635365]
[1745287605117,6.28735968,1590.5,1590.4,0.19635365]
[1745287605624,6.2870631,1590.6,1590.4,0.19635365]
[1745287606031,6.2870631,1590.6,1590.5,0.19635365]
[1745287606553,6.28680637,1590.7,1590.3,9.28811064]
[1745287606749,6.28680637,1590.7,1590.3,10.98495258]
[1745287606954,6.28680637,1590.7,1590.4,0.19631051]
[1745287607122,12.36633843,1590.8,1590.5,6.074]
[1745287607323,12.36633843,1590.8,1590.5,6.8373]
[1745287607653,6.28593458,1590.9,1590.5,13.12450846]
[1745287607859,12.57203316,1590.9,1590.5,13.6014903]
[1745287608019,6.28620026,1590.8,1590.5,13.6014903]
[1745287608412,7.03716514,1591.2,1590.8,3.0]
[1745287608561,6.28513356,1591.1,1590.7,10.04970008]
[1745287608947,6.28513356,1591.1,1590.8,0.19626888]
[1745287609124,6.28513356,1591.1,1590.9,6.073]
[1745287609325,6.28539913,1591.0,1590.9,9.073]
[1745287609922,6.28539913,1591.0,1590.9,6.073]
[1745287610123,1.25705327,1591.0,1590.5,1.24028184]
[1745287610367,6.28668263,1590.7,1590.6,6.073]
[1745287610556,6.28668263,1590.7,1590.6,9.073]
[1745287611070,12.57269725,1590.8,1590.6,9.073]
[1745287611238,6.28625044,1590.8,1590.6,9.073]
[1745287612745,6.28597162,1590.9,1590.7,3.0]
[1745287613168,6.28614533,1590.8,1590.7,3.0]
[1745287614390,7.54335703,1590.8,1590.7,3.0]
[1745287615162,7.54335703,1590.8,1590.6,6.073]
[1745287615163,6.28654051,1590.7,1590.6,6.073]
[1745287615568,6.28654051,1590.7,1590.2,0.794]
[1745287615569,6.28812173,1590.3,1590.2,0.794]
[1745287615932,6.28812173,1590.3,1590.2,6.067]
[1745287616094,6.28812173,1590.3,1590.2,9.067]
[1745287617401,6.72449954,1590.3,1590.2,9.067]
[1745287617900,6.72449954,1590.3,1590.2,3.0]
[1745287620305,0.43637781,1590.3,1590.2,3.34709655]
[1745287620621,6.28791145,1590.4,1590.2,3.54342306]
[1745287620816,0.43637781,1590.3,1590.2,3.54342306]
[1745287620984,6.28791145,1590.4,1590.2,3.54342306]
[1745287621184,0.43637781,1590.3,1590.2,3.54342306]
[1745287621380,6.28791145,1590.4,1590.2,3.54342306]
[1745287621607,0.43637781,1590.3,1590.2,3.19632651]
[1745287621810,6.28755314,1590.5,1590.2,3.0]
[1745287622007,0.43637781,1590.4,1590.3,3.794]
[1745287622394,0.43637781,1590.4,1590.3,3.99031799]
[1745287622721,6.28677713,1590.7,1590.3,10.27812367]
[1745287622722,6.28671208,1590.7,1590.3,10.27812367]
[1745287623023,12.57355008,1590.7,1590.4,6.068]
[1745287623174,6.71702153,1590.6,1590.5,0.19631799]
[1745287623881,6.28733102,1590.5,1590.4,9.64830619]
[1745287624180,13.00414372,1590.6,1589.9,6.861]
[1745287624181,6.28930817,1590.0,1589.9,6.861]
[1745287624533,6.71935515,1590.0,1589.9,6.067]
[1745287624735,6.71935515,1590.0,1589.9,6.26338056]
[1745287625509,6.71935515,1590.0,1589.9,6.067]
[1745287626712,6.71935515,1590.0,1589.9,0.19640203]
[1745287627113,6.71935515,1590.0,1589.7,20.732]
[1745287627114,6.29009938,1589.8,1589.7,20.732]
[1745287627316,6.29049506,1589.7,1589.6,9.068]
[1745287627481,6.29049506,1589.7,1589.6,9.65055109]
[1745287627685,8.79830148,1589.7,1589.6,0.58255109]
[1745287628528,6.29128656,1589.5,1589.4,3.0]
[1745287628829,6.29168239,1589.4,1589.3,6.068]
[1745287629033,6.72172937,1589.4,1589.3,6.068]
[1745287629198,6.72172937,1589.4,1589.3,9.068]
[1745287629611,6.72172937,1589.4,1589.3,3.0]
[1745287630733,6.72172937,1589.4,1589.3,3.7789]
[1745287630979,0.43004698,1589.4,1589.3,4.56684811]
[1745287631115,0.43004698,1589.4,1589.3,10.85892638]
[1745287631328,6.29069475,1589.7,1589.4,3.0]
[1745287631482,6.29069475,1589.7,1589.6,3.0]
[1745287632234,12.36991103,1589.9,1589.6,8.78638114]
[1745287632437,6.70781618,1589.8,1589.6,8.78638114]
[1745287632601,6.29049506,1589.7,1589.6,4.6858]
[1745287632796,6.29049506,1589.7,1589.6,4.3612212]
[1745287633012,0.41763798,1589.7,1589.6,4.3612212]
[1745287633226,6.28991477,1589.9,1589.6,4.3612212]
[1745287633392,0.41763798,1589.8,1589.6,4.3612212]
[1745287633834,6.70781762,1589.8,1589.7,0.5823212]
[1745287634131,0.41763798,1589.8,1589.7,0.5823212]
[1745287634328,6.70773736,1589.8,1589.7,0.5823212]
[1745287634618,0.41763798,1589.8,1589.7,0.5823212]
[1745287634834,6.70773736,1589.8,1589.7,0.5823212]
[1745287635345,6.70773736,1589.8,1589.7,1.01844332]
[1745287635635,6.70773736,1589.8,1589.7,1.48984199]
[1745287636631,0.41763798,1589.8,1589.7,1.48984199]
[1745287636801,0.41763798,1589.8,1589.7,1.55274038]
[1745287637514,6.70773736,1589.8,1589.7,1.48984199]
[1745287637812,6.70773736,1589.8,1589.7,1.05371987]
[1745287639542,6.70773736,1589.8,1589.7,1.2501254]
[1745287641408,0.41763798,1589.8,1589.7,1.2501254]
[1745287641607,0.41763798,1589.8,1589.7,2.09192684]
[1745287642049,6.28974434,1589.9,1589.7,2.09192684]
[1745287642379,7.05807503,1590.4,1590.0,6.28899473]
[1745287642533,6.28753681,1590.5,1590.1,9.12788137]
[1745287642731,6.28751908,1590.5,1590.2,0.7789]
[1745287642963,6.28751908,1590.5,1590.3,0.19640553]
[1745287643472,6.28751908,1590.5,1590.4,0.19640553]
[1745287643621,6.28751908,1590.5,1590.4,0.77872673]
[1745287644635,6.28660072,1590.7,1590.4,0.77872673]
[1745287644864,6.28725305,1590.6,1590.5,0.19640553]
[1745287645373,6.28725305,1590.6,1590.5,0.77872673]
[1745287645659,12.57278987,1590.8,1590.6,3.8278]
[1745287645863,6.28654051,1590.7,1590.6,3.8278]
[1745287646163,12.57280269,1590.8,1590.6,3.8278]
[1745287646362,6.28633622,1590.8,1590.6,4.02409155]
[1745287646560,6.28654051,1590.7,1590.6,4.02409155]
[1745287647072,6.28654051,1590.7,1590.6,3.19629155]
[1745287647369,6.28654051,1590.7,1590.6,3.77857735]
[1745287647544,6.71869815,1590.7,1590.6,3.77857735]
[1745287648665,6.28812173,1590.3,1590.2,6.063]
[1745287648873,6.28970375,1589.9,1589.8,21.5668]
[1745287649173,6.28948888,1590.0,1589.8,28.09716575]
[1745287649368,6.28948888,1590.0,1589.9,3.0]
[1745287650434,6.28908789,1590.1,1589.9,3.0]
[1745287650674,6.28930817,1590.0,1589.9,3.93021222]
[1745287651688,6.28930817,1590.0,1589.9,3.0]
[1745287652970,12.57829037,1590.1,1589.9,3.0]
[1745287653133,12.57832414,1590.1,1589.9,3.0]
[1745287653651,6.28856531,1590.2,1589.9,3.06289024]
[1745287653847,6.288101,1590.4,1590.0,6.28918521]
[1745287654043,0.8289,1590.6,1589.9,3.0]
[1745287654044,6.28812173,1590.3,1589.9,3.0]
[1745287654245,6.28930817,1590.0,1589.9,3.0]
[1745287654593,7.11613621,1590.6,1590.1,0.8278]
[1745287654895,6.288493,1590.3,1590.2,9.063]
[1745287655467,6.288493,1590.3,1590.2,3.0]
[1745287655641,7.54613319,1590.3,1590.2,3.0]
[1745287655842,6.28891264,1590.1,1590.0,9.063]
[1745287658178,6.28870024,1590.2,1590.1,3.0]
[1745287659056,6.28835221,1590.3,1590.1,3.0]
[1745287659361,6.28791714,1590.4,1590.1,3.0]
[1745287659671,6.28791714,1590.4,1590.2,0.7955]
[1745287659884,6.28752558,1590.5,1590.2,0.7955]
[1745287660046,7.05397221,1590.8,1590.2,1.1813387]
[1745287660377,6.28748523,1590.5,1590.2,1.1813387]
[1745287660670,6.28748523,1590.5,1590.3,0.58303258]
[1745287660875,6.28748523,1590.5,1590.4,0.19632596]
[1745287661128,6.28748523,1590.5,1590.4,0.66596255]
[1745287662080,6.28748523,1590.5,1590.4,1.24899513]
[1745287662271,0.43004698,1590.5,1590.4,1.24899513]
[1745287662578,6.717378,1590.5,1590.4,10.31199513]
[1745287662882,0.43004698,1590.5,1590.4,11.34319464]
[1745287663569,6.717378,1590.5,1590.4,10.31199513]
[1745287663768,0.43004698,1590.5,1590.4,10.31199513]
[1745287664353,6.2870524,1590.6,1590.4,10.37486609]
[1745287664555,0.43004698,1590.5,1590.4,10.31199513]
[1745287665976,6.717378,1590.5,1590.4,10.31199513]
[1745287667347,0.43004698,1590.5,1590.4,10.31199513]
[1745287667557,0.43004698,1590.5,1590.4,11.34319464]
[1745287667960,0.43004698,1590.5,1590.4,12.13869464]
[1745287668167,6.28706791,1590.6,1590.4,12.13869464]
[1745287668368,0.43004698,1590.5,1590.4,12.13869464]
[1745287668582,6.717378,1590.5,1590.4,11.34319464]
[1745287668814,6.717378,1590.5,1590.4,10.11566917]
[1745287668982,6.717378,1590.5,1590.4,10.3119858]
[1745287670102,0.43004698,1590.5,1590.4,10.3119858]
[1745287670291,6.717378,1590.5,1590.4,10.3119858]
[1745287671513,6.717378,1590.5,1590.4,10.31198389]
[1745287671811,0.43004698,1590.5,1590.4,10.31198389]
[1745287672006,6.717378,1590.5,1590.4,10.31198389]
[1745287674814,0.43004698,1590.5,1590.4,10.31198389]
[1745287674980,6.717378,1590.5,1590.4,10.31198389]
[1745287676626,0.43004698,1590.5,1590.4,10.31198389]
[1745287676920,6.717378,1590.5,1590.4,11.34946965]
[1745287677125,6.717378,1590.5,1590.4,10.31198389]
[1745287679730,6.717378,1590.5,1590.4,0.7793473]
[1745287680132,7.539778,1590.5,1590.4,0.7793473]
[1745287680719,6.717378,1590.5,1590.4,0.7793473]
[1745287683765,6.717378,1590.5,1590.4,1.25518921]
[1745287685342,6.717378,1590.5,1590.4,0.7793473]
[1745287687669,6.28772635,1590.4,1590.3,6.057]
[1745287687975,6.28772635,1590.4,1590.0,9.057]
[1745287687976,6.28914726,1590.1,1590.0,9.057]
[1745287688175,6.71922449,1590.4,1590.1,6.59374861]
[1745287688176,0.43149814,1590.4,1590.1,6.59374861]
[1745287688482,6.28851716,1590.2,1590.1,6.59374861]
[1745287688668,6.28851716,1590.2,1590.1,3.0]
[1745287688877,6.7200153,1590.2,1590.1,6.59374861]
[1745287690884,6.7200153,1590.2,1590.1,3.0]
[1745287691182,6.28891264,1590.1,1590.0,3.0]
[1745287691767,6.72041078,1590.1,1590.0,3.0]
[1745287696103,6.72041078,1590.1,1590.0,6.59374861]
[1745287696403,6.72041078,1590.1,1590.0,3.0]
[1745287697685,7.52121078,1590.1,1590.0,3.0]
[1745287698605,7.52121078,1590.1,1589.8,3.59374861]
[1745287698606,6.28930817,1590.0,1589.7,9.058]
[1745287698833,6.29009938,1589.8,1589.7,9.058]
[1745287699429,6.71869494,1589.8,1589.7,9.058]
[1745287699832,6.71869494,1589.8,1589.7,9.25440294]
[1745287700797,6.71869494,1589.8,1589.7,9.83677838]
[1745287701735,6.71869494,1589.8,1589.7,10.31172261]
[1745287704652,8.829553,1589.8,1589.6,3.59374861]
[1745287704819,6.29089079,1589.6,1589.5,0.19]
[1745287705024,6.29168239,1589.4,1589.3,6.052]
[1745287705366,2.11085806,1589.8,1589.4,3.0]
[1745287705649,6.29168239,1589.4,1589.3,6.052]
[1745287705856,6.29168239,1589.4,1589.3,9.052]
[1745287706149,6.29168239,1589.4,1589.3,3.0]
[1745287707156,6.29207827,1589.3,1589.2,26.786]
[1745287707865,6.72067383,1589.3,1589.2,29.786]
[1745287708217,6.72067383,1589.3,1589.2,33.37974861]
[1745287710333,6.72067383,1589.3,1589.2,34.13614861]
[1745287710334,0.42859556,1589.3,1589.2,34.13614861]
[1745287710536,6.29152509,1589.5,1589.3,3.0]
[1745287710730,13.18004552,1589.9,1589.4,3.59374861]
[1745287710949,6.29074144,1589.7,1589.6,6.59374861]
[1745287711172,6.29074144,1589.7,1589.6,12.64774861]
[1745287711365,6.29074144,1589.7,1589.6,13.91252347]
[1745287712068,0.81,1590.1,1589.6,13.91252347]
[1745287712069,6.29004457,1589.9,1589.6,13.91252347]
[1745287712383,6.29027438,1589.8,1589.6,13.91252347]
[1745287712680,6.29049506,1589.7,1589.6,13.91252347]
[1745287712973,6.29049506,1589.7,1589.6,9.054]
[1745287714504,6.29027438,1589.8,1589.6,9.054]
[1745287714642,6.29027438,1589.8,1589.7,3.59374861]
[1745287715479,6.28951722,1590.0,1589.8,3.0]
[1745287715645,6.28951722,1590.0,1589.8,3.73501486]
[1745287715963,6.28970375,1589.9,1589.8,3.73501486]
[1745287716169,6.28951722,1590.0,1589.8,3.73501486]
[1745287716775,6.28951722,1590.0,1589.9,0.1963884]
[1745287717572,6.28951722,1590.0,1589.9,0.77775487]
[1745287721479,6.29089079,1589.6,1589.5,0.8324]
[1745287721644,6.29089079,1589.6,1589.5,6.053]
[1745287721847,6.29089079,1589.6,1589.5,9.053]
[1745287722278,6.29089079,1589.6,1589.5,6.053]
[1745287722579,6.70918918,1589.6,1589.5,9.053]
[1745287733314,6.70918918,1589.6,1589.5,6.053]
[1745287733826,6.70918918,1589.6,1589.5,6.63443996]
[1745287734012,6.70918918,1589.6,1589.5,6.83087502]
[1745287734178,8.63824458,1589.6,1589.5,6.83087502]
[1745287734695,9.42074458,1589.6,1589.5,0.77787502]
[1745287735090,9.42074458,1589.6,1589.5,0.19643506]
[1745287736191,7.07418239,1589.4,1589.3,0.58172928]
[1745287736392,8.41074805,1589.4,1589.3,0.58172928]
[1745287736698,6.29207827,1589.3,1589.2,6.046]
[1745287737095,6.70839525,1589.3,1589.2,12.63974861]
[1745287737724,6.70839525,1589.3,1589.2,13.220953]
[1745287738300,6.70839525,1589.3,1589.2,13.974853]
[1745287739022,6.70839525,1589.3,1589.2,13.220953]
[1745287740744,0.41631698,1589.3,1589.2,13.220953]
[1745287740945,0.41631698,1589.3,1589.2,14.5430483]
[1745287741132,6.70839525,1589.3,1589.2,14.5430483]
[1745287741604,6.70839525,1589.3,1589.2,13.220953]
[1745287745436,6.70839525,1589.3,1589.2,13.221953]
[1745287748740,6.70839525,1589.3,1589.2,13.41842565]
[1745287748945,7.47299525,1589.3,1589.2,7.37142565]
[1745287749821,7.47299525,1589.3,1589.2,0.77767704]
[1745287750132,9.47865018,1589.3,1589.2,0.77767704]
[1745287751641,9.47865018,1589.3,1589.2,4.37142565]
[1745287751844,6.70839525,1589.3,1589.2,4.37142565]
[1745287752338,6.70839525,1589.3,1589.2,4.174953]
[1745287752544,6.70839525,1589.3,1589.2,8.1522332]
[1745287753241,6.70839525,1589.3,1589.2,7.3714332]
[1745287756040,6.70839525,1589.3,1589.2,0.77768459]
[1745287756243,8.00840301,1589.3,1589.2,0.77768459]
[1745287756617,8.77300301,1589.3,1589.2,0.77768459]
[1745287758025,8.77300301,1589.3,1589.2,1e-08]
[1745287758026,9.32300301,1589.3,1589.2,1e-08]
[1745287758218,9.32300301,1589.3,1588.4,4.62414861]
[1745287758219,6.29524708,1588.5,1588.4,4.62414861]
[1745287758545,6.29524708,1588.5,1588.4,6.84334861]
[1745287758546,6.70997872,1588.5,1588.4,6.84334861]
[1745287758745,6.70997872,1588.5,1588.4,3.84334861]
[1745287758746,0.41473164,1588.5,1588.4,3.84334861]
[1745287759057,0.41473164,1588.5,1588.4,8.91328347]
[1745287759424,6.29490165,1588.6,1588.5,3.0]
[1745287759627,6.29490165,1588.6,1588.5,6.59374861]
[1745287760659,7.05950165,1588.6,1588.5,3.0]
[1745287761358,8.39491826,1588.6,1588.5,3.0]
[1745287761856,6.29524708,1588.5,1588.4,6.2976]
[1745287762046,6.29524708,1588.5,1588.4,0.2496]
[1745287763972,6.29468119,1588.7,1588.4,0.2496]
[1745287764170,12.58794619,1588.9,1588.5,10.75782324]
[1745287764470,12.58794619,1588.9,1588.8,3.59374861]
[1745287764471,6.29393482,1588.9,1588.8,3.59374861]
[1745287765375,6.29366228,1588.9,1588.8,6.59374861]
[1745287765558,6.29366228,1588.9,1588.8,7.25312347]
[1745287766077,6.29366228,1588.9,1588.8,6.59374861]
[1745287766574,6.29366228,1588.9,1588.8,3.0]
[1745287767232,6.29366228,1588.9,1588.8,6.59374861]
[1745287767436,6.70165334,1588.9,1588.8,3.59374861]
[1745287770470,0.40799106,1588.9,1588.8,4.59627005]
[1745287770679,0.40799106,1588.9,1588.8,5.63678367]
[1745287770885,0.40799106,1588.9,1588.8,11.99377387]
[1745287771079,6.29253922,1589.2,1588.9,9.29352392]
[1745287771280,6.29253922,1589.2,1589.1,6.59374861]
[1745287771784,6.29253922,1589.2,1589.1,6.79027005]
[1745287771964,6.29253922,1589.2,1589.1,7.37115666]
[1745287772664,6.29253922,1589.2,1589.1,3.77740805]
[1745287773446,6.29253922,1589.2,1589.1,0.77740805]
[1745287774489,7.55101876,1589.2,1589.1,0.77740805]
[1745287775757,8.37061876,1589.2,1589.1,0.77740805]
[1745287776179,8.37061876,1589.2,1589.1,0.58088661]
[1745287776895,6.2940584,1588.8,1588.7,3.59374861]
[1745287777191,6.29384673,1588.9,1588.8,3.0]
[1745287777377,6.29384673,1588.9,1588.8,3.19652983]
[1745287778089,6.29384673,1588.9,1588.8,3.77765544]
[1745287782473,6.70527471,1588.9,1588.8,3.77765544]
[1745287785395,8.00514377,1588.9,1588.8,3.77765544]
[1745287785596,6.70527471,1588.9,1588.8,3.77765544]
[1745287789360,6.70527471,1588.9,1588.8,3.77765454]
[1745287789989,7.50037471,1588.9,1588.8,3.77765454]
[1745287791908,6.70527471,1588.9,1588.8,3.77765454]
[1745287799810,7.47637471,1588.9,1588.8,0.77765454]
[1745287799972,9.48269921,1588.9,1588.8,0.77765454]
[1745287800709,6.29485081,1588.6,1588.5,12.63474861]
[1745287801004,6.70588229,1588.6,1588.5,9.83130563]
[1745287801205,6.70588229,1588.6,1588.5,12.83130563]
[1745287801505,6.70588229,1588.6,1588.5,13.41420201]
[1745287803700,6.70588229,1588.6,1588.5,9.8204534]
[1745287804015,9.40649933,1588.6,1588.5,0.7794534]
[1745287804581,9.95649933,1588.6,1588.5,0.7794534]
[1745287804912,9.18539933,1588.6,1588.5,1e-08]
[1745287805072,9.95649933,1588.6,1588.5,1e-08]
[1745287805708,6.29643621,1588.2,1588.1,6.69374861]
[1745287805884,7.63281257,1588.2,1588.1,0.1]
[1745287806086,7.63281257,1588.2,1587.7,3.59374861]
[1745287806087,6.29802242,1587.8,1587.7,3.59374861]
[1745287806290,6.29802242,1587.8,1587.7,6.59374861]
[1745287806817,6.70548465,1587.8,1587.7,6.59374861]
[1745287807106,6.70548465,1587.8,1587.7,3.59374861]
[1745287807311,6.70548465,1587.8,1587.7,6.59374861]
[1745287810490,0.40746223,1587.8,1587.7,8.65582347]
[1745287810690,0.40746223,1587.8,1587.7,8.71879987]
[1745287810892,6.2974689,1588.0,1587.8,3.0]
[1745287811222,6.2974689,1588.0,1587.9,3.59374861]
[1745287812388,6.70493113,1588.0,1587.8,6.59374861]
[1745287812622,6.29762579,1587.9,1587.8,6.59374861]
[1745287812932,6.29762579,1587.9,1587.6,9.62674861]
[1745287812933,6.29841909,1587.7,1587.6,9.62674861]
[1745287813217,6.29841909,1587.7,1587.6,9.033]
[1745287813425,8.77034406,1587.7,1587.1,0.1]
[1745287813582,6.30040322,1587.2,1587.1,0.8994]
[1745287814116,6.70786545,1587.2,1587.1,3.8994]
[1745287814327,6.70786545,1587.2,1587.1,0.1]
[1745287814492,8.81347006,1587.2,1587.1,0.1]
[1745287814680,6.30199142,1586.8,1586.7,0.7994]
[1745287814883,6.30199142,1586.8,1586.6,0.59002427]
[1745287814884,6.3023886,1586.7,1586.6,0.59002427]
[1745287815105,6.3023886,1586.7,1586.6,7.18377288]
[1745287815330,6.70985083,1586.7,1586.6,4.18377288]
[1745287816218,0.40746223,1586.7,1586.6,4.18377288]
[1745287818362,0.40746223,1586.7,1586.6,4.98209017]
[1745287818975,6.70985083,1586.7,1586.6,4.18377288]
[1745287819516,6.70985083,1586.7,1586.6,0.59002427]
[1745287819952,7.51465083,1586.7,1586.6,0.59002427]
[1745287820106,6.3031831,1586.5,1586.4,6.035]
[1745287820543,6.68602424,1586.5,1586.4,6.035]
[1745287820744,6.30358043,1586.4,1586.3,3.0]
[1745287821251,6.3039778,1586.3,1586.2,3.59374861]
[1745287821815,6.68681894,1586.3,1586.2,3.59374861]
[1745287822455,0.38284114,1586.3,1586.2,3.59374861]
[1745287822751,6.68681894,1586.3,1586.2,3.59374861]
[1745287822953,6.3039778,1586.3,1586.2,3.59374861]
[1745287823159,6.68681894,1586.3,1586.2,3.59374861]
[1745287823340,12.99111107,1586.3,1586.1,6.69374861]
[1745287823650,6.68681894,1586.3,1586.1,6.69374861]
[1745287826553,6.30437523,1586.2,1586.1,6.69374861]
[1745287826752,6.68707129,1586.3,1586.1,6.69374861]
[1745287826941,6.30423015,1586.3,1586.1,6.69374861]
[1745287827260,6.68721637,1586.2,1586.1,3.1]
[1745287827756,0.38284114,1586.2,1586.1,3.1]
[1745287828157,7.06184853,1586.5,1586.1,3.16304368]
[1745287828456,0.7585,1586.5,1586.2,3.59374861]
[1745287828664,6.68643079,1586.4,1586.2,4.34804861]
[1745287829369,0.38284114,1586.4,1586.2,5.09285347]
[1745287831131,0.38284114,1586.4,1586.3,3.0]
[1745287831330,0.38284114,1586.4,1586.3,3.7543]
[1745287831576,12.60607445,1586.6,1586.3,3.7543]
[1745287831783,0.38284114,1586.4,1586.3,3.7543]
[1745287831934,6.30297032,1586.6,1586.4,3.59374861]
[1745287832274,6.3031831,1586.5,1586.4,6.59374861]
[1745287832672,6.3031831,1586.5,1586.4,3.0]
[1745287833569,6.3031831,1586.5,1586.4,6.59374861]
[1745287834481,12.60609331,1586.6,1586.4,6.59374861]
[1745287834778,6.3031831,1586.5,1586.4,6.59374861]
[1745287835071,6.30297032,1586.6,1586.4,6.59374861]
[1745287835232,12.60604952,1586.6,1586.4,6.59374861]
[1745287835433,6.30297032,1586.6,1586.4,6.59374861]
[1745287836174,6.30167562,1586.9,1586.4,6.59374861]
[1745287836175,0.7585,1586.9,1586.5,3.0]
[1745287836474,7.06026754,1586.9,1586.7,3.0]
[1745287836774,6.30199142,1586.8,1586.7,3.0]
[1745287836948,6.30199142,1586.8,1586.7,3.19677648]
[1745287837143,6.30176754,1586.9,1586.7,3.19677648]
[1745287837345,6.30176754,1586.9,1586.7,3.0]
[1745287837545,12.60365926,1586.9,1586.7,3.0]
[1745287838089,6.30176754,1586.9,1586.7,3.7543]
[1745287838656,12.60365125,1586.9,1586.7,3.7543]
[1745287838857,12.60368123,1586.9,1586.7,3.7543]
[1745287839195,6.30176754,1586.9,1586.7,3.7543]
[1745287839600,7.09599142,1586.8,1586.4,9.62574861]
[1745287839757,6.30312248,1586.6,1586.4,9.62574861]
[1745287840075,6.30306587,1586.6,1586.5,3.0]
[1745287840794,6.30306587,1586.6,1586.5,3.77821799]
[1745287841157,12.60524708,1586.7,1586.5,3.77821799]
[1745287841358,6.30257421,1586.7,1586.5,3.77821799]
[1745287841558,6.30257421,1586.7,1586.6,0.19681912]
[1745287841785,7.64245274,1586.7,1586.6,0.77821799]
[1745287842607,6.67759335,1586.7,1586.6,4.3719666]
[1745287842755,0.37501914,1586.7,1586.6,4.3719666]
[1745287842952,0.37501914,1586.7,1586.6,5.1563666]
[1745287843369,6.67740774,1586.7,1586.6,5.1563666]
[1745287843770,6.67740774,1586.7,1586.6,4.3719666]
[1745287844194,7.97536962,1586.7,1586.6,4.3719666]
[1745287844403,8.76936962,1586.7,1586.6,0.77821799]
[1745287846992,6.30437523,1586.2,1586.1,3.69374861]
[1745287847201,6.67952704,1586.2,1586.1,0.1]
[1745287847885,8.6083128,1586.2,1586.1,0.1]
[1745287848877,8.6083128,1586.2,1586.1,3.69374861]
[1745287849076,6.67952704,1586.2,1586.1,3.69374861]
[1745287851203,0.37515181,1586.2,1586.1,3.69374861]
[1745287851709,0.37515181,1586.2,1586.1,6.69374861]
[1745287852076,6.30375027,1586.4,1586.2,3.0]
[1745287852292,6.30375027,1586.4,1586.3,6.59374861]
[1745287855122,6.30437523,1586.2,1586.1,9.72574861]
[1745287855529,6.30437523,1586.2,1586.1,3.69374861]
[1745287856088,6.30437523,1586.2,1586.1,0.1]
[1745287857398,6.67952704,1586.2,1586.1,0.1]
[1745287857603,7.51122704,1586.2,1586.1,0.1]
[1745287857801,8.89276566,1586.2,1586.1,0.1]
[1745287860032,8.06106566,1586.2,1586.1,0.1]
[1745287860218,6.67952704,1586.2,1586.1,0.1]
[1745287860837,6.67952704,1586.2,1586.1,0.29686541]
[1745287863519,0.37515181,1586.2,1586.1,4.06286541]
[1745287863900,12.60849479,1586.3,1586.1,4.06286541]
[1745287864108,6.67528221,1586.2,1586.1,1.06286541]
[1745287864424,6.67528221,1586.2,1586.1,4.65661402]
[1745287865955,0.37090698,1586.2,1586.1,5.46157977]
[1745287866719,6.30382147,1586.4,1586.1,5.46157977]
[1745287866919,0.37090698,1586.2,1586.1,5.26471436]
[1745287867119,6.30382147,1586.4,1586.1,5.26471436]
[1745287867329,0.37090698,1586.2,1586.1,5.26471436]
[1745287867535,6.30403029,1586.3,1586.1,5.26471436]
[1745287867828,0.37090698,1586.2,1586.1,5.26471436]
[1745287868035,0.37090698,1586.2,1586.1,8.26471436]
[1745287868258,6.30417657,1586.3,1586.1,6.89058679]
[1745287868419,0.37090698,1586.2,1586.1,6.89058679]
[1745287871061,6.67528221,1586.2,1586.1,6.89058679]
[1745287872861,6.67528221,1586.2,1586.1,3.89058679]
[1745287873378,7.47498221,1586.2,1586.1,0.29683818]
[1745287873545,9.48331484,1586.2,1586.1,0.29683818]
[1745287873942,10.03331484,1586.2,1586.1,1e-08]
[1745287874145,10.18291484,1586.2,1586.1,1e-08]
[1745287874545,10.18291484,1586.2,1586.0,0.3930435]
[1745287874546,7.65447271,1586.1,1586.0,1e-08]
[1745287874732,14.27147271,1586.1,1586.0,1e-08]
[1745287874959,18.16683011,1586.1,1586.0,1e-08]
[1745287875331,11.54983011,1586.1,1586.0,1e-08]
[1745287875840,10.99983011,1586.1,1586.0,1e-08]
[1745287876770,6.67926135,1586.1,1586.0,3.59374862]
[1745287877085,7.10584394,1585.8,1585.3,0.38415814]
[1745287877259,6.30755645,1585.4,1585.3,3.59374861]
[1745287877460,6.68204509,1585.4,1585.3,3.59374861]
[1745287877775,0.37448864,1585.4,1585.3,3.59374861]
[1745287877955,6.68204509,1585.4,1585.3,3.59374861]
[1745287878574,6.68204509,1585.4,1585.3,6.59374861]
[1745287878783,6.68204509,1585.4,1585.2,6.025]
[1745287878784,6.30795433,1585.3,1585.2,6.025]
[1745287878975,6.30795433,1585.3,1585.2,9.025]
[1745287879274,6.68244297,1585.3,1585.2,9.025]
[1745287880679,6.68244297,1585.3,1585.2,3.0]
[1745287880840,6.30835225,1585.2,1585.1,0.1]
[1745287881042,7.30175281,1585.2,1585.1,0.1]
[1745287881465,7.85175281,1585.2,1585.1,0.1]
[1745287882137,7.85175281,1585.2,1585.1,1e-08]
[1745287882337,8.65145281,1585.2,1585.1,1e-08]
[1745287882776,6.63350851,1585.2,1585.1,1e-08]
[1745287882961,0.32515626,1585.2,1585.1,3.80150001]
[1745287884376,6.63350851,1585.2,1585.1,3.80150001]
[1745287884746,0.32515626,1585.2,1585.1,3.80150001]
[1745287885143,6.63350851,1585.2,1585.1,3.80150001]
[1745287885381,6.63350851,1585.2,1585.1,0.80150001]
[1745287885877,0.32515626,1585.2,1585.1,4.92343022]
[1745287886081,12.61552467,1585.4,1585.2,3.0]
[1745287886281,0.32515626,1585.3,1585.2,3.0]
[1745287886641,6.63311059,1585.3,1585.2,3.0]
[1745287887085,6.30835225,1585.2,1585.1,2.27260765]
[1745287887270,6.30835225,1585.2,1585.1,0.80150001]
[1745287887459,6.63350851,1585.2,1585.1,0.80150001]
[1745287887846,6.63350851,1585.2,1585.1,1e-08]
[1745287890595,7.42130851,1585.2,1585.1,1e-08]
[1745287890796,7.97130851,1585.2,1585.1,1e-08]
[1745287890957,9.39923479,1585.2,1585.1,1e-08]
[1745287891290,8.84923479,1585.2,1585.1,1e-08]
[1745287892062,9.39923479,1585.2,1585.1,1e-08]
[1745287897162,8.84923479,1585.2,1585.1,1e-08]
[1745287899569,8.06143479,1585.2,1585.1,1e-08]
[1745287899900,6.63350851,1585.2,1585.1,1e-08]
[1745287901673,7.18350851,1585.2,1585.1,1e-08]